[Event "Titled Tuesday Blitz February 15 Early 2022"]
[White "Eynullayev, Altay"]
[Black "Papasimakopoulos, Alexandros"]
[WhiteFideId "13413562"]
[BlackFideId "4244125"]
[WhiteElo "2079"]
[BlackElo "2340"]
[Result "0-1"]
[Round "07"]
[TimeControl "180+1"]
[Date "2022.02.15"]
[WhiteClock "0:00:05"]
[BlackClock "0:00:30"]

1. e4 {[%clk 0:03:00]}  e6 {[%clk 0:02:57]} 2. d4 {[%clk 0:03:00]}  d5 {[%clk 0:02:53]} 3. e5 {[%clk 0:03:00]}  b6 {[%clk 0:02:53]} 4. Nf3 {[%clk 0:02:59]}  Ne7 {[%clk 0:02:53]} 5. h4 {[%clk 0:02:58]}  h5 {[%clk 0:02:50]} 6. Bg5 {[%clk 0:02:57]}  Qd7 {[%clk 0:02:50]} 7. Bd3 {[%clk 0:02:56]}  Ba6 {[%clk 0:02:49]} 8. O-O {[%clk 0:02:55]}  Bxd3 {[%clk 0:02:49]} 9. Qxd3 {[%clk 0:02:56]}  Nf5 {[%clk 0:02:50]} 10. Nc3 {[%clk 0:02:47]}  c5 {[%clk 0:02:45]} 11. Ne2 {[%clk 0:02:46]}  Nc6 {[%clk 0:02:40]} 12. c3 {[%clk 0:02:45]}  Be7 {[%clk 0:02:39]} 13. g3 {[%clk 0:02:45]}  f6 {[%clk 0:02:33]} 14. Bf4 {[%clk 0:02:45]}  c4 {[%clk 0:02:32]} 15. Qd2 {[%clk 0:02:40]}  g5 {[%clk 0:02:25]} 16. hxg5 {[%clk 0:02:09]}  fxg5 {[%clk 0:02:25]} 17. Bxg5 {[%clk 0:02:08]}  O-O-O {[%clk 0:02:24]} 18. Kg2 {[%clk 0:01:56]}  Rdg8 {[%clk 0:02:19]} 19. Bxe7 {[%clk 0:01:55]}  Qxe7 {[%clk 0:02:14]} 20. Rh1 {[%clk 0:01:50]}  h4 {[%clk 0:02:15]} 21. Rag1 {[%clk 0:01:44]}  Qg7 {[%clk 0:02:01]} 22. Qf4 {[%clk 0:01:24]}  hxg3 {[%clk 0:01:53]} 23. fxg3 {[%clk 0:01:09]}  Nce7 {[%clk 0:01:49]} 24. Rxh8 {[%clk 0:01:05]}  Rxh8 {[%clk 0:01:45]} 25. Rh1 {[%clk 0:01:04]}  Rg8 {[%clk 0:01:38]} 26. Rh5 {[%clk 0:01:03]}  Kd7 {[%clk 0:01:14]} 27. Rg5 {[%clk 0:00:59]}  Qh7 {[%clk 0:01:12]} 28. Rxg8 {[%clk 0:00:59]}  Qxg8 {[%clk 0:01:08]} 29. Kf2 {[%clk 0:00:59]}  Qh7 {[%clk 0:01:08]} 30. Qg5 {[%clk 0:00:50]}  Nh6 {[%clk 0:00:53]} 31. Qh5 {[%clk 0:00:39]}  Qg7 {[%clk 0:00:46]} 32. Qg5 {[%clk 0:00:35]}  Qh7 {[%clk 0:00:41]} 33. Qh4 {[%clk 0:00:20]}  Nef5 {[%clk 0:00:41]} 34. Qf4 {[%clk 0:00:20]}  Qg6 {[%clk 0:00:37]} 35. Qg5 {[%clk 0:00:18]}  Qh7 {[%clk 0:00:33]} 36. Qh5 {[%clk 0:00:16]}  Ne3 {[%clk 0:00:32]} 37. Qh4 {[%clk 0:00:05]}  Nhg4+ {[%clk 0:00:30]} 0-1


[Site "https://www.chess.com"]

[Event "Titled Tuesday Blitz February 15 Early 2022"]
[White "Eynullayev, Atilla"]
[Black "Goltseva, Ekaterina"]
[WhiteFideId "13413570"]
[BlackFideId "24173770"]
[WhiteElo "1979"]
[BlackElo "2140"]
[Result "1-0"]
[Round "07"]
[TimeControl "180+1"]
[Date "2022.02.15"]
[WhiteClock "0:00:20"]
[BlackClock "0:01:36"]

1. e4 {[%clk 0:03:00]}  e5 {[%clk 0:03:00]} 2. Nf3 {[%clk 0:03:01]}  Nc6 {[%clk 0:02:59]} 3. Bb5 {[%clk 0:03:01]}  a6 {[%clk 0:02:59]} 4. Ba4 {[%clk 0:03:02]}  Nf6 {[%clk 0:02:58]} 5. O-O {[%clk 0:03:02]}  b5 {[%clk 0:02:57]} 6. Bb3 {[%clk 0:03:02]}  Be7 {[%clk 0:02:57]} 7. d3 {[%clk 0:02:53]}  d6 {[%clk 0:02:53]} 8. a4 {[%clk 0:02:53]}  Bg4 {[%clk 0:02:52]} 9. c3 {[%clk 0:02:48]}  O-O {[%clk 0:02:47]} 10. Nbd2 {[%clk 0:02:45]}  b4 {[%clk 0:02:44]} 11. h3 {[%clk 0:02:45]}  Bh5 {[%clk 0:02:43]} 12. a5 {[%clk 0:02:44]}  Rb8 {[%clk 0:02:42]} 13. Bc4 {[%clk 0:02:43]}  Ra8 {[%clk 0:02:42]} 14. Qa4 {[%clk 0:02:35]}  Nb8 {[%clk 0:02:33]} 15. cxb4 {[%clk 0:02:35]}  Nbd7 {[%clk 0:02:31]} 16. Qc6 {[%clk 0:02:26]}  Qc8 {[%clk 0:02:30]} 17. b5 {[%clk 0:02:18]}  axb5 {[%clk 0:02:29]} 18. Qxb5 {[%clk 0:02:17]}  c6 {[%clk 0:02:28]} 19. Qb3 {[%clk 0:02:14]}  Nc5 {[%clk 0:02:28]} 20. Qa2 {[%clk 0:02:07]}  Qc7 {[%clk 0:02:28]} 21. b4 {[%clk 0:02:06]}  Ne6 {[%clk 0:02:28]} 22. Bxe6 {[%clk 0:01:58]}  fxe6 {[%clk 0:02:29]} 23. Ng5 {[%clk 0:01:59]}  Bf7 {[%clk 0:02:29]} 24. Nxf7 {[%clk 0:01:56]}  Kxf7 {[%clk 0:02:29]} 25. f4 {[%clk 0:01:38]}  exf4 {[%clk 0:02:28]} 26. Nf3 {[%clk 0:01:38]}  h6 {[%clk 0:02:23]} 27. Bxf4 {[%clk 0:01:29]}  g5 {[%clk 0:02:22]} 28. Bxg5 {[%clk 0:01:11]}  hxg5 {[%clk 0:02:21]} 29. Nxg5+ {[%clk 0:01:11]}  Kg6 {[%clk 0:02:22]} 30. Nxe6 {[%clk 0:01:11]}  Qa7+ {[%clk 0:02:22]} 31. Kh1 {[%clk 0:01:12]}  Rg8 {[%clk 0:02:15]} 32. Nf4+ {[%clk 0:01:10]}  Kh7 {[%clk 0:02:12]} 33. d4 {[%clk 0:00:30]}  Qxd4 {[%clk 0:02:07]} 34. Qf7+ {[%clk 0:00:31]}  Rg7 {[%clk 0:02:07]} 35. Qxg7+ {[%clk 0:00:31]}  Kxg7 {[%clk 0:02:03]} 36. Ne6+ {[%clk 0:00:32]}  Kg6 {[%clk 0:01:59]} 37. Nxd4 {[%clk 0:00:33]}  Nxe4 {[%clk 0:01:59]} 38. Nxc6 {[%clk 0:00:30]}  Ng3+ {[%clk 0:01:59]} 39. Kg1 {[%clk 0:00:30]}  Nxf1 {[%clk 0:02:00]} 40. Nxe7+ {[%clk 0:00:30]}  Kf7 {[%clk 0:02:00]} 41. Kxf1 {[%clk 0:00:29]}  Kxe7 {[%clk 0:02:01]} 42. b5 {[%clk 0:00:29]}  Kd7 {[%clk 0:02:01]} 43. b6 {[%clk 0:00:20]}  Kc6 {[%clk 0:02:00]} 44. Rb1 {[%clk 0:00:20]}  Kb7 {[%clk 0:01:59]} 45. Rb5 {[%clk 0:00:19]}  Rf8+ {[%clk 0:01:58]} 46. Kg1 {[%clk 0:00:19]}  Re8 {[%clk 0:01:57]} 47. h4 {[%clk 0:00:18]}  Re4 {[%clk 0:01:53]} 48. h5 {[%clk 0:00:19]}  Re8 {[%clk 0:01:47]} 49. h6 {[%clk 0:00:18]}  Rh8 {[%clk 0:01:48]} 50. Rh5 {[%clk 0:00:18]}  d5 {[%clk 0:01:46]} 51. Kf2 {[%clk 0:00:18]}  d4 {[%clk 0:01:45]} 52. Ke2 {[%clk 0:00:19]}  Ka6 {[%clk 0:01:42]} 53. Kd3 {[%clk 0:00:18]}  Rh7 {[%clk 0:01:43]} 54. g4 {[%clk 0:00:19]}  Kb7 {[%clk 0:01:37]} 55. g5 {[%clk 0:00:18]}  Ka6 {[%clk 0:01:37]} 56. g6 {[%clk 0:00:19]}  Rh8 {[%clk 0:01:37]} 57. g7 {[%clk 0:00:19]}  Rg8 {[%clk 0:01:38]} 58. h7 {[%clk 0:00:19]}  Rxg7 {[%clk 0:01:38]} 59. h8=Q {[%clk 0:00:20]}  Rh7 {[%clk 0:01:36]} 60. Qa8+ {[%clk 0:00:19]}  Ra7 {[%clk 0:01:36]} 61. Qxa7# {[%clk 0:00:20]} 1-0


[Site "https://www.chess.com"]

[Event "Titled Tuesday Blitz February 15 Early 2022"]
[White "Fernandez, Michael"]
[Black "De Silva, L M S T"]
[WhiteFideId "5803560"]
[BlackFideId "9953698"]
[WhiteElo "2413"]
[BlackElo "2709"]
[Result "0-1"]
[Round "07"]
[TimeControl "180+1"]
[Date "2022.02.15"]
[WhiteClock "0:00:11"]
[BlackClock "0:01:25"]

1. b4 {[%clk 0:03:00]}  h5 {[%clk 0:02:57]} 2. Bb2 {[%clk 0:02:59]}  h4 {[%clk 0:02:56]} 3. h3 {[%clk 0:02:58]}  b6 {[%clk 0:02:56]} 4. d4 {[%clk 0:02:49]}  Bb7 {[%clk 0:02:54]} 5. c4 {[%clk 0:02:49]}  e6 {[%clk 0:02:53]} 6. a3 {[%clk 0:02:45]}  f5 {[%clk 0:02:52]} 7. Nf3 {[%clk 0:02:43]}  Nf6 {[%clk 0:02:51]} 8. Ne5 {[%clk 0:02:37]}  d6 {[%clk 0:02:47]} 9. Ng6 {[%clk 0:02:36]}  Rh6 {[%clk 0:02:47]} 10. Nxf8 {[%clk 0:02:35]}  Kxf8 {[%clk 0:02:48]} 11. Qd2 {[%clk 0:02:27]}  Ne4 {[%clk 0:02:45]} 12. Qe3 {[%clk 0:02:23]}  Nd7 {[%clk 0:02:41]} 13. Nd2 {[%clk 0:02:17]}  Nxd2 {[%clk 0:02:39]} 14. Qxd2 {[%clk 0:02:16]}  Nf6 {[%clk 0:02:37]} 15. Bc1 {[%clk 0:02:11]}  Ne4 {[%clk 0:02:34]} 16. Qf4 {[%clk 0:02:06]}  Qf6 {[%clk 0:02:29]} 17. e3 {[%clk 0:01:37]}  e5 {[%clk 0:02:27]} 18. dxe5 {[%clk 0:01:36]}  dxe5 {[%clk 0:02:28]} 19. Qf3 {[%clk 0:01:37]}  Rd8 {[%clk 0:02:26]} 20. Be2 {[%clk 0:00:48]}  Nc5 {[%clk 0:02:15]} 21. e4 {[%clk 0:00:49]}  Bxe4 {[%clk 0:02:14]} 22. Qc3 {[%clk 0:00:41]}  Nd3+ {[%clk 0:02:14]} 23. Kf1 {[%clk 0:00:37]}  Rg6 {[%clk 0:02:10]} 24. f3 {[%clk 0:00:33]}  Nxc1 {[%clk 0:01:57]} 25. Rxc1 {[%clk 0:00:34]}  Bb7 {[%clk 0:01:45]} 26. Rg1 {[%clk 0:00:25]}  Rd4 {[%clk 0:01:44]} 27. c5 {[%clk 0:00:23]}  Qg5 {[%clk 0:01:37]} 28. cxb6 {[%clk 0:00:17]}  Rc6 {[%clk 0:01:37]} 29. Qxc6 {[%clk 0:00:17]}  Bxc6 {[%clk 0:01:38]} 30. Rxc6 {[%clk 0:00:18]}  cxb6 {[%clk 0:01:36]} 31. Kf2 {[%clk 0:00:16]}  Qg3+ {[%clk 0:01:36]} 32. Kf1 {[%clk 0:00:16]}  e4 {[%clk 0:01:36]} 33. fxe4 {[%clk 0:00:15]}  fxe4 {[%clk 0:01:35]} 34. Rc2 {[%clk 0:00:14]}  e3 {[%clk 0:01:34]} 35. Bf3 {[%clk 0:00:13]}  Rc4 {[%clk 0:01:25]} 36. Rxc4 {[%clk 0:00:11]}  Qf2# {[%clk 0:01:25]} 0-1


[Site "https://www.chess.com"]

[Event "Titled Tuesday Blitz February 15 Early 2022"]
[White "Galyas, Miklos"]
[Black "Rosenberg, Evan S"]
[WhiteFideId "707244"]
[BlackFideId "2019299"]
[WhiteElo "2409"]
[BlackElo "2353"]
[Result "1-0"]
[Round "07"]
[TimeControl "180+1"]
[Date "2022.02.15"]
[WhiteClock "0:01:58"]
[BlackClock "0:00:02"]

1. c4 {[%clk 0:03:00]}  e5 {[%clk 0:02:59]} 2. Nc3 {[%clk 0:02:59]}  Bb4 {[%clk 0:03:00]} 3. e4 {[%clk 0:02:58]}  Bxc3 {[%clk 0:02:39]} 4. dxc3 {[%clk 0:02:56]}  d6 {[%clk 0:02:40]} 5. Ne2 {[%clk 0:02:54]}  Nc6 {[%clk 0:02:37]} 6. Ng3 {[%clk 0:02:53]}  Nge7 {[%clk 0:02:38]} 7. Bd3 {[%clk 0:02:53]}  O-O {[%clk 0:02:34]} 8. O-O {[%clk 0:02:53]}  f5 {[%clk 0:02:30]} 9. f4 {[%clk 0:02:51]}  exf4 {[%clk 0:02:25]} 10. Bxf4 {[%clk 0:02:50]}  Ne5 {[%clk 0:02:26]} 11. Bxe5 {[%clk 0:02:44]}  dxe5 {[%clk 0:02:26]} 12. exf5 {[%clk 0:02:45]}  Qd6 {[%clk 0:02:10]} 13. Kh1 {[%clk 0:02:40]}  a5 {[%clk 0:01:41]} 14. Be4 {[%clk 0:02:39]}  Ra6 {[%clk 0:01:33]} 15. Qc2 {[%clk 0:02:33]}  Qh6 {[%clk 0:01:31]} 16. Rad1 {[%clk 0:02:31]}  Rd6 {[%clk 0:01:24]} 17. Rxd6 {[%clk 0:02:28]}  cxd6 {[%clk 0:01:25]} 18. Qd3 {[%clk 0:02:26]}  g6 {[%clk 0:00:55]} 19. f6 {[%clk 0:02:21]}  Nf5 {[%clk 0:00:39]} 20. Nxf5 {[%clk 0:02:17]}  gxf5 {[%clk 0:00:38]} 21. Bxf5 {[%clk 0:02:13]}  Bxf5 {[%clk 0:00:22]} 22. Qxf5 {[%clk 0:02:12]}  Qg6 {[%clk 0:00:16]} 23. Qxg6+ {[%clk 0:02:08]}  hxg6 {[%clk 0:00:16]} 24. h4 {[%clk 0:02:07]}  Kf7 {[%clk 0:00:16]} 25. Kh2 {[%clk 0:02:05]}  Ke6 {[%clk 0:00:15]} 26. g4 {[%clk 0:02:00]}  Rxf6 {[%clk 0:00:14]} 27. Rxf6+ {[%clk 0:02:00]}  Kxf6 {[%clk 0:00:15]} 28. Kg3 {[%clk 0:02:00]}  a4 {[%clk 0:00:11]} 29. Kf3 {[%clk 0:01:58]}  g5 {[%clk 0:00:02]} 30. h5 {[%clk 0:01:58]}  b5 {[%clk 0:00:02]} 1-0


[Site "https://www.chess.com"]

[Event "Titled Tuesday Blitz February 15 Early 2022"]
[White "Garagulya, Konstantin"]
[Black "Seo, Jung Min"]
[WhiteFideId "4128931"]
[BlackFideId "1734687"]
[WhiteElo "2489"]
[BlackElo "2717"]
[Result "1/2-1/2"]
[Round "07"]
[TimeControl "180+1"]
[Date "2022.02.15"]
[WhiteClock "0:00:29"]
[BlackClock "0:00:36"]

1. d4 {[%clk 0:03:00]}  Nf6 {[%clk 0:02:59]} 2. Nf3 {[%clk 0:03:00]}  g6 {[%clk 0:03:00]} 3. Nc3 {[%clk 0:02:59]}  d5 {[%clk 0:02:59]} 4. Bf4 {[%clk 0:02:59]}  Bg7 {[%clk 0:02:58]} 5. e3 {[%clk 0:02:59]}  a6 {[%clk 0:02:57]} 6. Bd3 {[%clk 0:02:59]}  Bg4 {[%clk 0:02:54]} 7. h3 {[%clk 0:02:58]}  Bxf3 {[%clk 0:02:54]} 8. Qxf3 {[%clk 0:02:59]}  e6 {[%clk 0:02:52]} 9. g4 {[%clk 0:02:51]}  Nbd7 {[%clk 0:02:51]} 10. Qg3 {[%clk 0:02:50]}  c5 {[%clk 0:02:46]} 11. Bd6 {[%clk 0:02:49]}  cxd4 {[%clk 0:02:44]} 12. exd4 {[%clk 0:02:49]}  Bf8 {[%clk 0:02:44]} 13. Bxf8 {[%clk 0:02:45]}  Kxf8 {[%clk 0:02:43]} 14. Ne2 {[%clk 0:02:45]}  Rc8 {[%clk 0:02:41]} 15. O-O {[%clk 0:02:43]}  h5 {[%clk 0:02:37]} 16. Kg2 {[%clk 0:02:34]}  Qb6 {[%clk 0:02:34]} 17. Rab1 {[%clk 0:02:33]}  Qa5 {[%clk 0:02:33]} 18. a3 {[%clk 0:02:33]}  Kg7 {[%clk 0:02:30]} 19. Nf4 {[%clk 0:02:32]}  hxg4 {[%clk 0:02:20]} 20. hxg4 {[%clk 0:02:31]}  Qb6 {[%clk 0:02:18]} 21. c3 {[%clk 0:02:31]}  e5 {[%clk 0:02:07]} 22. dxe5 {[%clk 0:02:29]}  Nxe5 {[%clk 0:02:07]} 23. Nh5+ {[%clk 0:02:15]}  gxh5 {[%clk 0:01:36]} 24. Qxe5 {[%clk 0:02:14]}  hxg4 {[%clk 0:01:36]} 25. Rh1 {[%clk 0:02:10]}  Rh3 {[%clk 0:01:32]} 26. Qg5+ {[%clk 0:01:18]}  Kf8 {[%clk 0:01:32]} 27. Bf5 {[%clk 0:01:19]}  Rc4 {[%clk 0:01:18]} 28. Rxh3 {[%clk 0:01:12]}  gxh3+ {[%clk 0:01:18]} 29. Bxh3 {[%clk 0:01:13]}  Qxf2+ {[%clk 0:01:13]} 30. Kxf2 {[%clk 0:01:02]}  Ne4+ {[%clk 0:01:13]} 31. Ke3 {[%clk 0:01:02]}  Nxg5 {[%clk 0:01:13]} 32. Bg2 {[%clk 0:01:02]}  Rc5 {[%clk 0:01:07]} 33. Rd1 {[%clk 0:00:58]}  Ne4 {[%clk 0:01:04]} 34. Bxe4 {[%clk 0:00:55]}  dxe4 {[%clk 0:01:04]} 35. Kxe4 {[%clk 0:00:55]}  Ke7 {[%clk 0:01:03]} 36. Kd4 {[%clk 0:00:44]}  Rc8 {[%clk 0:01:01]} 37. Re1+ {[%clk 0:00:44]}  Kf8 {[%clk 0:01:01]} 38. c4 {[%clk 0:00:42]}  Rc6 {[%clk 0:00:50]} 39. b4 {[%clk 0:00:41]}  Rh6 {[%clk 0:00:46]} 40. c5 {[%clk 0:00:34]}  Rh3 {[%clk 0:00:44]} 41. a4 {[%clk 0:00:30]}  Rh4+ {[%clk 0:00:44]} 42. Kc3 {[%clk 0:00:30]}  Rh3+ {[%clk 0:00:36]} 43. Kc4 {[%clk 0:00:30]}  Rh4+ {[%clk 0:00:36]} 44. Kc3 {[%clk 0:00:30]}  Rh3+ {[%clk 0:00:36]} 45. Kc4 {[%clk 0:00:29]}  Rh4+ {[%clk 0:00:36]} 46. Kc3 {[%clk 0:00:29]} 1/2-1/2


[Site "https://www.chess.com"]

[Event "Titled Tuesday Blitz February 15 Early 2022"]
[White "Gatterer, Florian"]
[Black "Brodowski, Piotr"]
[WhiteFideId "811688"]
[BlackFideId "1124480"]
[WhiteElo "2218"]
[BlackElo "2422"]
[Result "1-0"]
[Round "07"]
[TimeControl "180+1"]
[Date "2022.02.15"]
[WhiteClock "0:00:06"]
[BlackClock "0:00:04"]

1. Nf3 {[%clk 0:03:00]}  d5 {[%clk 0:02:55]} 2. d4 {[%clk 0:03:00]}  Kd7 {[%clk 0:02:56]} 3. g3 {[%clk 0:02:59]}  Qe8 {[%clk 0:02:56]} 4. Bg2 {[%clk 0:02:55]}  Kd8 {[%clk 0:02:57]} 5. O-O {[%clk 0:02:54]}  c6 {[%clk 0:02:57]} 6. c4 {[%clk 0:02:54]}  e6 {[%clk 0:02:57]} 7. Nc3 {[%clk 0:02:54]}  Nf6 {[%clk 0:02:57]} 8. Bg5 {[%clk 0:02:53]}  Be7 {[%clk 0:02:56]} 9. Bxf6 {[%clk 0:02:52]}  gxf6 {[%clk 0:02:52]} 10. e4 {[%clk 0:02:52]}  dxe4 {[%clk 0:02:52]} 11. Nxe4 {[%clk 0:02:51]}  f5 {[%clk 0:02:53]} 12. Nc3 {[%clk 0:02:50]}  Qd7 {[%clk 0:02:45]} 13. d5 {[%clk 0:02:50]}  f6 {[%clk 0:02:31]} 14. dxe6 {[%clk 0:02:46]}  Qxd1 {[%clk 0:02:30]} 15. Raxd1+ {[%clk 0:02:46]}  Kc7 {[%clk 0:02:31]} 16. Nd4 {[%clk 0:02:44]}  Na6 {[%clk 0:02:22]} 17. a3 {[%clk 0:02:30]}  Nc5 {[%clk 0:02:13]} 18. Nxf5 {[%clk 0:02:29]}  Re8 {[%clk 0:02:11]} 19. b4 {[%clk 0:02:13]}  Nxe6 {[%clk 0:01:58]} 20. Nxe7 {[%clk 0:02:12]}  Rxe7 {[%clk 0:01:55]} 21. Rfe1 {[%clk 0:02:12]}  Bd7 {[%clk 0:01:53]} 22. Ne4 {[%clk 0:02:04]}  Rf8 {[%clk 0:01:30]} 23. f4 {[%clk 0:01:33]}  b6 {[%clk 0:01:18]} 24. Nd6 {[%clk 0:01:23]}  Rg7 {[%clk 0:01:12]} 25. Kh1 {[%clk 0:01:17]}  Rfg8 {[%clk 0:01:09]} 26. Bh3 {[%clk 0:01:17]}  Nd8 {[%clk 0:00:29]} 27. Bxd7 {[%clk 0:01:11]}  Rxd7 {[%clk 0:00:29]} 28. Nf5 {[%clk 0:01:05]}  Rxd1 {[%clk 0:00:24]} 29. Rxd1 {[%clk 0:01:06]}  Re8 {[%clk 0:00:24]} 30. Rd2 {[%clk 0:01:03]}  Re4 {[%clk 0:00:22]} 31. Rd4 {[%clk 0:00:51]}  Re2 {[%clk 0:00:18]} 32. Rd3 {[%clk 0:00:48]}  Rc2 {[%clk 0:00:16]} 33. Re3 {[%clk 0:00:43]}  Rxc4 {[%clk 0:00:15]} 34. Re7+ {[%clk 0:00:43]}  Kb8 {[%clk 0:00:16]} 35. Rxh7 {[%clk 0:00:38]}  c5 {[%clk 0:00:15]} 36. bxc5 {[%clk 0:00:35]}  bxc5 {[%clk 0:00:16]} 37. Nd6 {[%clk 0:00:34]}  Rd4 {[%clk 0:00:16]} 38. Nb5 {[%clk 0:00:33]}  Rd2 {[%clk 0:00:15]} 39. Nxa7 {[%clk 0:00:28]}  c4 {[%clk 0:00:15]} 40. Nb5 {[%clk 0:00:27]}  Ne6 {[%clk 0:00:16]} 41. Rh6 {[%clk 0:00:25]}  Nc5 {[%clk 0:00:12]} 42. Rxf6 {[%clk 0:00:23]}  Ne4 {[%clk 0:00:12]} 43. Re6 {[%clk 0:00:20]}  c3 {[%clk 0:00:06]} 44. Rxe4 {[%clk 0:00:17]}  c2 {[%clk 0:00:06]} 45. Rc4 {[%clk 0:00:16]}  c1=Q+ {[%clk 0:00:07]} 46. Rxc1 {[%clk 0:00:14]}  Rb2 {[%clk 0:00:07]} 47. Nc3 {[%clk 0:00:14]}  Rb3 {[%clk 0:00:07]} 48. f5 {[%clk 0:00:13]}  Kc7 {[%clk 0:00:03]} 49. f6 {[%clk 0:00:13]}  Kd7 {[%clk 0:00:03]} 50. f7 {[%clk 0:00:13]}  Ke7 {[%clk 0:00:04]} 51. Rf1 {[%clk 0:00:12]}  Kf8 {[%clk 0:00:03]} 52. Nd5 {[%clk 0:00:12]}  Rd3 {[%clk 0:00:02]} 53. Nc7 {[%clk 0:00:11]}  Rd6 {[%clk 0:00:01]} 54. a4 {[%clk 0:00:11]}  Rc6 {[%clk 0:00:01]} 55. Nd5 {[%clk 0:00:08]}  Rd6 {[%clk 0:00:02]} 56. Ne3 {[%clk 0:00:08]}  Re6 {[%clk 0:00:02]} 57. Ng4 {[%clk 0:00:07]}  Rg6 {[%clk 0:00:02]} 58. a5 {[%clk 0:00:06]}  Rxg4 {[%clk 0:00:02]} 59. Rf4 {[%clk 0:00:06]}  Rg5 {[%clk 0:00:01]} 60. Ra4 {[%clk 0:00:06]}  Kxf7 {[%clk 0:00:02]} 61. a6 {[%clk 0:00:06]}  Rg8 {[%clk 0:00:03]} 62. a7 {[%clk 0:00:06]}  Ra8 {[%clk 0:00:04]} 63. Ra6 {[%clk 0:00:06]}  Ke7 {[%clk 0:00:04]} 64. Kg2 {[%clk 0:00:06]} 1-0


[Site "https://www.chess.com"]

[Event "Titled Tuesday Blitz February 15 Early 2022"]
[White "Goltsev, Dmitry"]
[Black "Matinian, Nikita"]
[WhiteFideId "24176710"]
[BlackFideId "24129100"]
[WhiteElo "2494"]
[BlackElo "2720"]
[Result "1-0"]
[Round "07"]
[TimeControl "180+1"]
[Date "2022.02.15"]
[WhiteClock "0:01:22"]
[BlackClock "0:00:18"]

1. e4 {[%clk 0:03:00]}  c5 {[%clk 0:02:58]} 2. Nf3 {[%clk 0:03:01]}  d6 {[%clk 0:02:59]} 3. d4 {[%clk 0:03:01]}  cxd4 {[%clk 0:03:00]} 4. Nxd4 {[%clk 0:03:02]}  Nf6 {[%clk 0:02:59]} 5. Nc3 {[%clk 0:03:02]}  g6 {[%clk 0:03:00]} 6. Be2 {[%clk 0:03:01]}  Bg7 {[%clk 0:03:00]} 7. O-O {[%clk 0:03:01]}  O-O {[%clk 0:03:01]} 8. f4 {[%clk 0:03:01]}  Nc6 {[%clk 0:03:00]} 9. Be3 {[%clk 0:03:01]}  Ng4 {[%clk 0:02:51]} 10. Bxg4 {[%clk 0:02:42]}  Bxd4 {[%clk 0:02:51]} 11. Bxd4 {[%clk 0:02:40]}  Bxg4 {[%clk 0:02:51]} 12. Qd2 {[%clk 0:02:40]}  Nxd4 {[%clk 0:02:45]} 13. Qxd4 {[%clk 0:02:40]}  Rc8 {[%clk 0:02:44]} 14. h3 {[%clk 0:02:39]}  Bd7 {[%clk 0:02:43]} 15. Rad1 {[%clk 0:02:38]}  Re8 {[%clk 0:02:39]} 16. f5 {[%clk 0:02:36]}  Qb6 {[%clk 0:02:37]} 17. Qxb6 {[%clk 0:02:34]}  axb6 {[%clk 0:02:38]} 18. f6 {[%clk 0:02:35]}  Bc6 {[%clk 0:02:18]} 19. fxe7 {[%clk 0:02:31]}  Rxe7 {[%clk 0:02:19]} 20. Rxd6 {[%clk 0:02:32]}  Bxe4 {[%clk 0:02:15]} 21. Nxe4 {[%clk 0:02:33]}  Rxe4 {[%clk 0:02:15]} 22. Rf2 {[%clk 0:02:21]}  Re1+ {[%clk 0:01:43]} 23. Kh2 {[%clk 0:02:21]}  Rc7 {[%clk 0:01:28]} 24. Rxb6 {[%clk 0:02:20]}  Rd7 {[%clk 0:01:28]} 25. a4 {[%clk 0:02:13]}  h5 {[%clk 0:01:28]} 26. a5 {[%clk 0:02:12]}  Kg7 {[%clk 0:01:25]} 27. h4 {[%clk 0:02:09]}  f5 {[%clk 0:00:59]} 28. b4 {[%clk 0:02:02]}  Rb1 {[%clk 0:00:34]} 29. b5 {[%clk 0:01:47]}  Re7 {[%clk 0:00:30]} 30. c4 {[%clk 0:01:44]}  Re4 {[%clk 0:00:27]} 31. Rxb7+ {[%clk 0:01:44]}  Kh6 {[%clk 0:00:27]} 32. g3 {[%clk 0:01:39]}  Rxc4 {[%clk 0:00:27]} 33. a6 {[%clk 0:01:38]}  Ra4 {[%clk 0:00:22]} 34. Rc2 {[%clk 0:01:35]}  Raa1 {[%clk 0:00:19]} 35. Kg2 {[%clk 0:01:34]}  Rg1+ {[%clk 0:00:19]} 36. Kf3 {[%clk 0:01:34]}  Ra3+ {[%clk 0:00:18]} 37. Kf4 {[%clk 0:01:29]}  Rgxg3 {[%clk 0:00:19]} 38. Rcc7 {[%clk 0:01:22]}  Rg4+ {[%clk 0:00:17]} 39. Ke5 {[%clk 0:01:22]}  Rxh4 {[%clk 0:00:18]} 40. Kf6 {[%clk 0:01:22]} 1-0


[Site "https://www.chess.com"]